bitfinex/quotes_BTCUSD_20240613
["timestamp","ask_amount","ask_price","bid_price","bid_amount"]
[1718294352183,0.001,66416.0,66414.0,0.01]
[1718294352395,0.04064871,66419.0,66414.0,0.01]
[1718294352600,0.04064871,66423.0,66418.0,0.01]
[1718294352820,0.04064871,66423.0,66419.0,0.00744]
[1718294353051,0.14043308,66420.0,66419.0,0.00744]
[1718294353453,0.04064871,66420.0,66419.0,0.00744]
[1718294354325,0.04064871,66423.0,66422.0,0.01]
[1718294354536,0.04064871,66423.0,66419.0,0.00744]
[1718294354830,0.04064871,66423.0,66419.0,0.00844]
[1718294355041,0.14043308,66423.0,66419.0,0.00844]
[1718294355259,0.14043308,66423.0,66419.0,0.00744]
[1718294355260,0.04064871,66423.0,66419.0,0.00744]
[1718294355707,0.3223,66433.0,66430.0,0.01]
[1718294355931,0.04064871,66435.0,66426.0,0.2626]
[1718294356151,0.04064871,66435.0,66427.0,0.123]
[1718294356384,0.04064871,66435.0,66434.0,0.01]
[1718294356606,0.04064871,66438.0,66437.0,0.01]
[1718294356832,0.04064871,66435.0,66431.0,0.01]
[1718294357064,0.04064871,66442.0,66438.0,0.01]
[1718294357329,0.04064871,66445.0,66440.0,0.01]
[1718294357553,0.04064871,66445.0,66442.0,0.01]
[1718294358006,0.04064871,66449.0,66446.0,0.01]
[1718294358271,0.04064871,66449.0,66445.0,0.01]
[1718294358492,0.04064871,66449.0,66448.0,0.01]
[1718294358693,0.04064871,66452.0,66448.0,0.00991595]
[1718294358897,0.04064871,66452.0,66450.0,0.00991595]
[1718294359107,0.04064871,66452.0,66451.0,0.00991595]
[1718294359306,0.04064871,66455.0,66453.0,0.00991595]
[1718294359726,0.04064871,66455.0,66447.0,0.00991595]
[1718294359917,0.11280867,66455.0,66448.0,0.023]
[1718294360052,0.11280867,66455.0,66449.0,0.00991595]
[1718294360272,0.14043308,66452.0,66442.0,0.004]
[1718294360473,0.04064871,66443.0,66442.0,0.004]
[1718294360702,0.00940501,66459.0,66453.0,0.00991595]
[1718294361170,0.00940501,66459.0,66456.0,0.00991595]
[1718294361548,0.00940501,66459.0,66454.0,0.00300462]
[1718294361549,0.00940501,66459.0,66455.0,0.00529138]
[1718294361705,0.00940501,66459.0,66449.0,0.1]
[1718294361706,0.11043308,66450.0,66449.0,0.1]
[1718294361908,0.07215996,66456.0,66440.0,0.2]
[1718294361909,0.00064871,66447.0,66440.0,0.2]
[1718294362634,0.07215996,66446.0,66440.0,0.2]
[1718294362860,0.09978437,66444.0,66440.0,0.2]
[1718294362985,0.01,66441.0,66440.0,0.2]
[1718294363189,0.10978437,66441.0,66440.0,0.3]
[1718294363390,0.00064871,66443.0,66440.0,0.3]
[1718294363869,0.40275996,66446.0,66440.0,0.114]
[1718294363870,0.11043308,66441.0,66440.0,0.114]
[1718294364393,0.11043308,66441.0,66440.0,0.027]
[1718294364996,0.10043308,66441.0,66440.0,0.027]
[1718294365403,0.10043308,66441.0,66440.0,0.02785]
[1718294365715,0.00064871,66441.0,66440.0,0.01385]
[1718294366153,0.00064871,66441.0,66440.0,0.01485]
[1718294366354,0.00064871,66441.0,66440.0,0.00085]
[1718294366556,0.10043308,66441.0,66440.0,0.01385]
[1718294366999,0.10043308,66441.0,66440.0,0.02785]
[1718294367195,0.10043308,66441.0,66440.0,0.01485]
[1718294367472,0.11043308,66441.0,66440.0,0.01485]
[1718294367652,0.10043308,66441.0,66440.0,0.01485]
[1718294368211,0.001,66441.0,66440.0,0.02785]
[1718294368854,0.001,66441.0,66440.0,0.18208588]
[1718294369015,0.001,66441.0,66440.0,0.30508588]
[1718294369445,0.001,66441.0,66440.0,0.29516993]
[1718294369810,0.00093501,66447.0,66444.0,0.00991595]
[1718294370050,0.00093501,66447.0,66445.0,0.17723588]
[1718294370253,0.00093501,66447.0,66446.0,0.10601898]
[1718294370501,0.00093501,66447.0,66446.0,0.63793891]
[1718294370721,0.00093501,66447.0,66446.0,0.63191993]
[1718294371404,0.00193501,66447.0,66446.0,0.63191993]
[1718294372018,0.00187532,66447.0,66446.0,0.52231993]
[1718294372218,0.00187532,66447.0,66446.0,0.1]
[1718294372427,0.00187532,66447.0,66446.0,0.14431993]
[1718294372649,0.00187532,66447.0,66446.0,0.29023588]
[1718294373000,2.41e-06,66447.0,66446.0,0.29023588]
[1718294373235,0.00940501,66457.0,66456.0,0.00991595]
[1718294373476,0.00940501,66457.0,66456.0,0.62671595]
[1718294373705,0.09978437,66480.0,66467.0,0.00991595]
[1718294373930,0.4336085,66481.0,66474.0,0.00991595]
[1718294374163,0.00064871,66483.0,66475.0,0.023]
[1718294374387,0.07280867,66482.0,66475.0,0.03639744]
[1718294374656,0.07280867,66482.0,66475.0,0.02648149]
[1718294374871,0.07280867,66482.0,66476.0,0.00514011]
[1718294375084,0.07215996,66482.0,66477.0,0.023]
[1718294375288,0.07215996,66482.0,66477.0,0.00601649]
[1718294375526,0.09978437,66479.0,66477.0,0.00601649]
[1718294375780,0.3108,66490.0,66475.0,0.123]
[1718294375781,0.00940501,66489.0,66479.0,0.2382]
[1718294375986,0.00940501,66489.0,66480.0,0.15423588]
[1718294376237,0.00940501,66489.0,66481.0,0.1582]
[1718294376497,0.18134934,66489.0,66482.0,0.16731993]
[1718294376750,0.09978437,66483.0,66482.0,0.04922049]
[1718294376965,0.07215996,66488.0,66477.0,0.112]
[1718294376966,0.10978437,66478.0,66477.0,0.112]
[1718294377194,0.18194433,66478.0,66477.0,0.012]
[1718294377410,0.07215996,66478.0,66477.0,0.012]
[1718294377879,0.18259304,66478.0,66477.0,0.012]
[1718294378083,0.07280867,66478.0,66477.0,0.012]
[1718294378299,0.18259304,66478.0,66477.0,0.009]
[1718294378495,0.18359304,66478.0,66477.0,0.009]
[1718294378709,0.00164871,66478.0,66477.0,0.009]
[1718294379145,0.11143308,66478.0,66477.0,0.009]
[1718294379570,0.00164871,66478.0,66477.0,0.022]
[1718294380021,0.11143308,66478.0,66477.0,0.009]
[1718294380238,0.09978437,66476.0,66470.0,0.11764922]
[1718294380501,0.09978437,66472.0,66471.0,0.023]
[1718294380727,0.09978437,66475.0,66471.0,0.023]
[1718294380957,0.09978437,66475.0,66472.0,0.00744]
[1718294381186,0.18259304,66473.0,66472.0,0.00744]
[1718294381411,0.75339304,66473.0,66472.0,0.00744]
[1718294381627,0.76339304,66473.0,66472.0,0.00744]
[1718294381831,0.75339304,66473.0,66472.0,0.00744]
[1718294382980,0.75339304,66473.0,66472.0,0.01244]
[1718294383845,0.75339304,66473.0,66472.0,0.00744]
[1718294384937,0.75439304,66473.0,66472.0,0.01744]
[1718294385219,0.90871297,66473.0,66472.0,0.01744]
[1718294385437,0.11043308,66457.0,66456.0,0.1]
[1718294386096,0.08215996,66463.0,66445.0,0.5]
[1718294386097,0.09978437,66448.0,66445.0,0.5]
[1718294386308,0.09978437,66449.0,66445.0,0.5]
[1718294386515,0.01,66450.0,66445.0,0.5]
[1718294386516,0.09978437,66448.0,66447.0,0.060186]
[1718294386724,0.10978437,66446.0,66442.0,0.03009]
[1718294386866,0.09978437,66445.0,66443.0,0.14431993]
[1718294387073,0.00064871,66453.0,66446.0,0.060187]
[1718294387495,0.09978437,66447.0,66446.0,0.060187]
[1718294387676,0.09978437,66447.0,66441.0,0.2]
[1718294387677,0.00064871,66448.0,66442.0,0.01360699]
[1718294387864,0.00064871,66448.0,66441.0,0.2]
[1718294388086,0.001,66446.0,66442.0,0.173188]
[1718294388583,0.00064871,66454.0,66445.0,0.00991595]
[1718294388784,0.00064871,66454.0,66446.0,0.14651559]
[1718294388994,0.00064871,66454.0,66447.0,0.10520148]
[1718294388995,0.09978437,66451.0,66447.0,0.10520148]
[1718294389203,0.001,66448.0,66447.0,0.1]
[1718294389400,0.10078437,66448.0,66447.0,0.1]
[1718294389606,0.10078437,66448.0,66447.0,0.123]
[1718294390175,0.001,66448.0,66447.0,0.123]
[1718294390591,0.09978437,66448.0,66447.0,0.123]
[1718294390800,0.11078437,66448.0,66447.0,0.113]
[1718294391015,0.11078437,66448.0,66447.0,0.013]
[1718294391216,0.11143308,66448.0,66447.0,0.113]
[1718294391975,0.11143308,66448.0,66447.0,0.112]
[1718294392514,0.11243308,66448.0,66447.0,0.026]
[1718294392938,0.11243308,66448.0,66447.0,0.126]
[1718294392942,0.11243308,66448.0,66447.0,0.112]
[1718294392943,0.11143308,66448.0,66447.0,0.112]
[1718294393154,0.001,66448.0,66447.0,0.112]
[1718294393354,0.002,66448.0,66447.0,0.125]
[1718294393566,0.002,66448.0,66447.0,0.112]
[1718294393567,0.001,66448.0,66447.0,0.112]
[1718294393766,0.001,66448.0,66447.0,0.012]
[1718294393967,0.09978437,66449.0,66442.0,0.16019]
[1718294394167,0.10078437,66448.0,66447.0,0.013]
[1718294394413,0.002,66448.0,66447.0,0.023]
[1718294394843,0.002,66448.0,66447.0,1.05203588]
[1718294395051,0.002,66448.0,66447.0,1.16503588]
[1718294395052,0.001,66448.0,66447.0,1.16503588]
[1718294395268,0.001,66448.0,66447.0,1.32323588]
[1718294395807,0.001,66448.0,66447.0,1.28677457]
[1718294395992,0.001,66448.0,66447.0,1.16077457]
[1718294396198,0.001,66448.0,66447.0,0.52911993]
[1718294396540,0.09978437,66448.0,66447.0,0.123]
[1718294396720,0.001,66448.0,66447.0,0.037]
[1718294397306,0.11078437,66448.0,66447.0,0.037]
[1718294397546,0.11078437,66448.0,66447.0,0.046]
[1718294397760,0.11078437,66448.0,66447.0,0.023]
[1718294398087,0.10078437,66448.0,66447.0,0.01485]
[1718294398822,0.10078437,66448.0,66447.0,0.01470518]
[1718294399022,0.11078437,66448.0,66447.0,0.02770518]
[1718294399457,0.10978437,66448.0,66447.0,0.01385]
[1718294399662,0.09978437,66448.0,66447.0,0.01385]
[1718294399864,0.00064871,66451.0,66447.0,0.01385]
[1718294399865,0.10043308,66451.0,66447.0,0.01385]
[1718294400125,0.10978437,66448.0,66447.0,0.01385]
[1718294401210,0.10978437,66448.0,66447.0,0.01761705]
[1718294401427,0.36318437,66448.0,66447.0,0.009]
[1718294401627,0.35318437,66448.0,66447.0,0.009]
[1718294401839,0.09978437,66448.0,66447.0,0.009]
[1718294402048,0.10978437,66442.0,66441.0,0.2]
[1718294402262,0.10978437,66442.0,66441.0,0.223]
[1718294402873,0.10978437,66442.0,66441.0,0.323]
[1718294403866,0.11043308,66442.0,66441.0,0.1]
[1718294404083,0.11043308,66441.0,66440.0,0.00085]
[1718294404450,0.00064871,66445.0,66436.0,0.06346195]
[1718294404649,0.09978437,66443.0,66437.0,0.15033969]
[1718294404870,0.09978437,66443.0,66438.0,0.1]
[1718294405048,0.10978437,66439.0,66438.0,0.1]
[1718294405502,0.11043308,66439.0,66438.0,0.1]
[1718294405850,0.11043308,66439.0,66433.0,0.060198]
[1718294405851,0.11043308,66434.0,66433.0,0.060198]
[1718294406057,0.73729304,66434.0,66433.0,0.060198]
[1718294406294,0.90161297,66434.0,66433.0,0.060198]
[1718294406698,0.10978437,66420.0,66412.0,0.2439]
[1718294406900,0.00064871,66421.0,66419.0,0.04636161]
[1718294407103,0.303,66434.0,66429.0,0.00991595]
[1718294407277,0.01,66450.0,66429.0,0.00991595]
[1718294407278,0.00064871,66446.0,66430.0,0.2439]
[1718294407480,0.4336085,66448.0,66442.0,0.451521]
[1718294407684,0.00064871,66458.0,66442.0,1.02735095]
[1718294408025,0.00064871,66473.0,66461.0,0.00991595]
[1718294408221,0.12413546,66479.0,66466.0,0.95751]
[1718294408222,0.00093501,66472.0,66466.0,0.95751]
[1718294408423,0.00093501,66472.0,66454.0,0.09935129]
[1718294408424,0.00064871,66466.0,66452.0,0.125]
[1718294408668,0.00064871,66471.0,66452.0,0.12105465]
[1718294408825,0.00064871,66471.0,66453.0,0.023]
[1718294408826,0.10043308,66471.0,66453.0,0.023]
[1718294409034,0.00064871,66460.0,66453.0,0.023]
[1718294409276,0.09293308,66459.0,66450.0,0.023]
[1718294409445,0.09293308,66459.0,66451.0,0.03009]
[1718294409785,0.09293308,66455.0,66452.0,0.12442315]
[1718294409991,0.09293308,66455.0,66453.0,0.02293677]
[1718294410196,0.2407,66461.0,66452.0,0.11542315]
[1718294410197,0.11293308,66453.0,66452.0,0.11542315]
[1718294410573,0.11293308,66453.0,66452.0,0.014]
[1718294411187,0.09293308,66456.0,66452.0,0.014]
[1718294411365,0.09293308,66456.0,66455.0,0.150477]
[1718294411585,0.09293308,66458.0,66457.0,0.150473]
[1718294411790,0.01,66473.0,66445.0,0.03009]
[1718294411791,0.09293308,66470.0,66469.0,0.150446]
[1718294412213,0.11293308,66470.0,66466.0,0.150452]
[1718294412420,0.07215996,66480.0,66458.0,0.03009]
[1718294412421,0.3229,66479.0,66468.0,0.300895]
[1718294412776,0.3229,66479.0,66467.0,0.1006915]
[1718294412777,0.09293308,66483.0,66471.0,0.451324]
[1718294412996,0.09293308,66479.0,66471.0,0.173441]
[1718294413173,0.09293308,66475.0,66463.0,0.03009]
[1718294413381,0.09386809,66472.0,66465.0,0.03009]
[1718294413580,0.09386809,66472.0,66466.0,0.10051774]
[1718294413790,0.00093501,66472.0,66467.0,0.24431993]
[1718294413963,0.00093501,66472.0,66468.0,0.023]
[1718294414170,0.00093501,66472.0,66468.0,0.16731993]
[1718294414345,0.00093501,66472.0,66469.0,0.00248977]
[1718294414551,0.00093501,66472.0,66469.0,0.00601688]
[1718294414748,0.07215996,66471.0,66470.0,0.023]
[1718294414934,0.09293308,66467.0,66466.0,0.014]
[1718294415137,0.11293308,66467.0,66466.0,0.014]
[1718294415349,0.11293308,66467.0,66452.0,0.03009]
[1718294415350,0.09293308,66466.0,66452.0,0.03009]
[1718294415567,0.40643308,66469.0,66453.0,0.25121762]
[1718294415797,0.09293308,66469.0,66454.0,0.10087952]
[1718294415999,0.09293308,66463.0,66455.0,0.14431993]
[1718294416204,0.09293308,66463.0,66456.0,0.10087952]
[1718294416205,0.11293308,66457.0,66456.0,0.10087952]
[1718294416413,0.09293308,66451.0,66443.0,0.01372509]
[1718294416743,0.09293308,66451.0,66444.0,0.10244684]
[1718294416944,0.09293308,66448.0,66444.0,0.10244684]
[1718294417149,0.09293308,66443.0,66432.0,0.2545]
[1718294417313,0.09293308,66441.0,66432.0,0.2545]
[1718294417516,0.09293308,66449.0,66433.0,0.14431993]
[1718294417710,0.3036,66450.0,66434.0,0.10337997]
[1718294417938,0.3036,66450.0,66432.0,0.2545]
[1718294417939,0.09293308,66447.0,66435.0,0.24769942]
[1718294418156,0.09293308,66447.0,66436.0,0.10337949]
[1718294418356,0.39653308,66450.0,66438.0,0.03009]
[1718294418533,0.09293308,66449.0,66439.0,0.03610955]
[1718294418739,0.09293308,66448.0,66439.0,0.00601955]
[1718294419003,0.09293308,66448.0,66440.0,0.023]
[1718294419349,0.09293308,66448.0,66439.0,0.023]
[1718294419546,0.3036,66450.0,66430.0,0.43766446]
[1718294419754,0.42343308,66457.0,66438.0,0.14431993]
[1718294419972,0.42343308,66457.0,66439.0,0.13810965]
[1718294420178,0.16509304,66461.0,66441.0,0.2793]
[1718294420463,0.09293308,66459.0,66442.0,0.50496684]
[1718294420594,0.09293308,66459.0,66442.0,0.53995445]
[1718294420798,0.07215996,66461.0,66443.0,0.13743254]
[1718294421021,0.3305,66465.0,66445.0,0.1582]
[1718294421224,0.09293308,66469.0,66450.0,0.2382]
[1718294421386,0.09293308,66469.0,66451.0,0.24431993]
[1718294421588,0.09293308,66469.0,66452.0,0.00156835]
[1718294421794,0.56633501,66472.0,66457.0,0.08]
[1718294422001,0.09293308,66471.0,66458.0,0.16731993]
[1718294422490,0.09293308,66471.0,66457.0,0.08]
[1718294422491,0.07215996,66461.0,66457.0,0.08]
[1718294422845,0.09293308,66467.0,66457.0,0.08]
[1718294423243,0.16509304,66466.0,66458.0,0.14431993]
[1718294423446,0.16509304,66466.0,66459.0,0.023]
[1718294423646,0.09293308,66466.0,66459.0,0.023]
[1718294423848,0.00093501,66472.0,66460.0,0.124575]
[1718294424081,0.09293308,66471.0,66461.0,0.02644994]
[1718294424252,0.09293308,66471.0,66461.0,0.12644994]
[1718294424682,0.00093501,66472.0,66461.0,0.123]
[1718294425104,0.09386809,66472.0,66462.0,0.00301097]
[1718294425314,0.09293308,66465.0,66461.0,0.1]
[1718294425485,0.09293308,66462.0,66453.0,0.1]
[1718294425693,0.09293308,66463.0,66458.0,0.012]
[1718294425884,0.09293308,66465.0,66458.0,0.012]
[1718294426084,0.09293308,66457.0,66453.0,0.0137046]
[1718294426282,0.07215996,66454.0,66447.0,0.2526]
[1718294426559,0.07215996,66454.0,66437.0,0.28269]
[1718294426560,0.09293308,66449.0,66437.0,0.28269]
[1718294426739,0.07215996,66454.0,66438.0,0.13779528]
[1718294426740,0.09293308,66453.0,66438.0,0.13779528]
[1718294426955,0.07215996,66462.0,66444.0,0.08]
[1718294427104,0.09293308,66461.0,66458.0,0.012]
[1718294427461,0.09293308,66459.0,66445.0,0.14732318]
[1718294427588,0.16509304,66462.0,66446.0,0.29064953]
[1718294427791,0.09293308,66461.0,66448.0,0.1582]
[1718294427994,0.09293308,66459.0,66449.0,0.12535953]
[1718294428214,0.07215996,66455.0,66450.0,0.10235558]
[1718294428435,0.07215996,66455.0,66447.0,0.014]
[1718294428436,0.16509304,66455.0,66451.0,0.1]
[1718294428594,0.09293308,66455.0,66444.0,0.08]
[1718294428801,0.09293308,66455.0,66445.0,0.15968638]
[1718294429172,0.001,66449.0,66446.0,0.20174146]
[1718294429305,0.09293308,66455.0,66447.0,0.023]
[1718294429499,0.09293308,66455.0,66447.0,0.12474146]
[1718294429810,0.09293308,66455.0,66454.0,0.2526]
[1718294429811,0.001,66455.0,66454.0,0.2526]
[1718294430058,0.001,66455.0,66454.0,0.51991993]
[1718294430222,0.00093501,66472.0,66454.0,0.78020726]
[1718294430424,0.09293308,66471.0,66455.0,0.53362468]
[1718294430659,0.00093501,66472.0,66461.0,0.08]
[1718294430858,0.00093501,66472.0,66462.0,0.16731993]
[1718294431036,0.00093501,66472.0,66463.0,0.1]
[1718294431239,0.00093501,66472.0,66464.0,0.023]
[1718294431826,0.00093501,66472.0,66465.0,0.00450913]
[1718294431996,0.09293308,66471.0,66466.0,0.023]
[1718294432210,0.09293308,66466.0,66463.0,0.1]
[1718294432426,0.09293308,66470.0,66461.0,0.08]
[1718294432628,0.00093501,66472.0,66464.0,0.30251993]
[1718294432629,0.00053501,66472.0,66464.0,0.30251993]
[1718294432849,0.00053501,66472.0,66466.0,0.2649]
[1718294433065,0.00053501,66472.0,66468.0,0.1211]
[1718294433269,0.00053501,66472.0,66469.0,0.1]
[1718294433483,0.00053501,66472.0,66470.0,0.023]
[1718294433705,0.00053501,66472.0,66470.0,0.16731993]
[1718294433854,0.001,66471.0,66470.0,0.16731993]
[1718294434056,0.001,66471.0,66470.0,0.26731993]
[1718294434259,0.00053501,66472.0,66470.0,0.26731993]
[1718294434462,0.00053501,66472.0,66471.0,0.1]
[1718294434664,0.00053501,66472.0,66471.0,0.123]
[1718294436371,0.00053501,66472.0,66471.0,0.26731993]
[1718294436714,0.00053501,66472.0,66471.0,0.36830924]
[1718294436927,0.00153501,66472.0,66471.0,0.37230924]
[1718294437136,0.00153501,66472.0,66471.0,0.40718064]
[1718294437293,0.00053501,66472.0,66471.0,0.40718064]
[1718294437721,0.00053501,66472.0,66471.0,0.40318064]
[1718294437898,0.00053501,66472.0,66471.0,0.36830924]
[1718294438147,0.00153501,66472.0,66471.0,0.38130924]
[1718294438331,0.09446809,66472.0,66471.0,0.38130924]
[1718294438503,0.00153501,66472.0,66471.0,0.38130924]
[1718294438924,0.00153501,66472.0,66471.0,0.53950924]
[1718294439135,0.00153501,66472.0,66471.0,0.43851993]
[1718294439343,0.00153501,66472.0,66471.0,0.9874433]
[1718294439549,0.00153501,66472.0,66471.0,1.08999214]
[1718294439705,0.00053501,66472.0,66471.0,1.07699214]
[1718294439905,0.00053501,66472.0,66471.0,1.07698706]
[1718294440183,0.00153501,66472.0,66471.0,1.08998706]
[1718294440395,0.00153501,66472.0,66471.0,1.45108657]
[1718294440564,0.08156497,66495.0,66484.0,0.6114]
[1718294440565,0.00940501,66495.0,66484.0,0.6114]
[1718294440760,0.00940501,66495.0,66485.0,0.40251993]
[1718294441083,0.09293308,66493.0,66486.0,0.1812]
[1718294441364,0.09293308,66493.0,66487.0,0.24667484]
[1718294441519,0.12233809,66489.0,66488.0,0.1]
[1718294441967,0.12333809,66489.0,66488.0,0.1]
[1718294442308,0.01040501,66489.0,66488.0,0.1]
[1718294442518,0.12333809,66489.0,66488.0,0.1]
[1718294442728,0.12333809,66489.0,66486.0,0.014]
[1718294442729,0.09293308,66487.0,66486.0,0.014]
[1718294442950,0.09293308,66487.0,66486.0,0.037]
[1718294443200,0.01040501,66489.0,66486.0,0.26731993]
[1718294443426,0.00940501,66489.0,66487.0,0.16731993]
[1718294443629,0.00940501,66489.0,66488.0,0.2582]
[1718294443837,0.00940501,66489.0,66488.0,0.83722704]
[1718294444235,0.00940501,66489.0,66488.0,0.80221993]
[1718294444660,0.00940501,66489.0,66488.0,0.81621993]
[1718294445087,0.00940501,66489.0,66488.0,1.51621993]
[1718294445328,0.00940501,66489.0,66488.0,1.56621993]
[1718294445854,0.00260837,66489.0,66488.0,1.58021993]
[1718294446072,0.00260837,66489.0,66488.0,1.67058993]
[1718294446304,0.00260837,66489.0,66488.0,2.95546185]
[1718294446528,0.00260837,66489.0,66488.0,2.94839493]
[1718294446762,0.00260837,66489.0,66488.0,2.95546185]
[1718294447239,0.00239515,66495.0,66494.0,0.2382]
[1718294447470,0.00239515,66495.0,66494.0,0.55551993]
[1718294447716,0.00239515,66495.0,66494.0,0.71307193]
[1718294447957,0.00239515,66495.0,66494.0,0.66307193]
[1718294448199,0.00239515,66495.0,66494.0,0.50551993]
[1718294448476,0.00239515,66495.0,66494.0,0.71697793]
[1718294448710,0.00239515,66495.0,66494.0,0.73097793]
[1718294448975,0.00239515,66495.0,66494.0,0.66597793]
[1718294449205,0.00239515,66495.0,66494.0,0.51951993]
[1718294450246,0.00239515,66495.0,66494.0,0.66694593]
[1718294450761,0.00239515,66495.0,66494.0,0.51951993]
[1718294451283,0.00239515,66495.0,66494.0,0.53351993]
[1718294452515,0.00239515,66495.0,66494.0,0.231]
[1718294452773,0.00239515,66495.0,66494.0,0.028]
[1718294453030,0.11532823,66495.0,66494.0,0.028]
[1718294453525,0.00239515,66495.0,66494.0,0.028]
[1718294454017,0.00239515,66495.0,66494.0,0.25231993]
[1718294454251,0.00239515,66495.0,66494.0,0.35231993]
[1718294454702,0.00239515,66495.0,66494.0,0.37531993]
[1718294456146,0.00235455,66495.0,66494.0,0.37531993]
[1718294456586,0.00235455,66495.0,66494.0,0.39308376]
[1718294458047,0.11528763,66495.0,66494.0,0.39308376]
[1718294458295,0.11528763,66495.0,66494.0,0.14576383]
[1718294458546,0.11528763,66495.0,66494.0,0.04576383]
[1718294458769,0.09528763,66495.0,66494.0,0.14576383]
[1718294459217,0.11528763,66495.0,66494.0,0.14576383]
[1718294459438,0.00235455,66495.0,66494.0,0.29008376]
[1718294459640,0.00235455,66495.0,66494.0,0.31308376]
[1718294460258,0.00235455,66495.0,66494.0,0.51308376]
[1718294460474,1.0,66500.0,66499.0,0.2382]
[1718294460678,1.0,66500.0,66499.0,0.52641993]
[1718294460855,1.11293308,66500.0,66499.0,0.203]
[1718294462081,1.11293308,66500.0,66499.0,0.34731993]
[1718294462082,1.0,66500.0,66499.0,0.34731993]
[1718294462281,0.995,66500.0,66499.0,0.57011342]
[1718294462645,0.995,66500.0,66499.0,0.70861993]
[1718294462846,0.995,66500.0,66499.0,0.52951993]
[1718294463047,0.995,66500.0,66499.0,0.57321342]
[1718294463882,0.995,66500.0,66499.0,0.52951993]
[1718294464143,0.99593501,66500.0,66499.0,0.52951993]
[1718294464264,0.99593501,66500.0,66499.0,0.37131993]
[1718294464489,0.99593501,66500.0,66499.0,0.124]
[1718294464490,1.35036809,66500.0,66499.0,0.124]
[1718294465208,1.35036809,66500.0,66499.0,0.024]
[1718294466610,1.67406809,66500.0,66499.0,0.024]
[1718294467404,1.67406809,66500.0,66499.0,0.012]
[1718294468009,1.81838802,66500.0,66499.0,0.012]
[1718294468211,0.12293308,66495.0,66494.0,0.00085]
[1718294468464,0.70323308,66495.0,66494.0,0.00085]
[1718294468731,0.84755301,66495.0,66494.0,0.00085]
[1718294469987,0.69323308,66495.0,66494.0,0.00085]
[1718294470348,0.70323308,66495.0,66494.0,0.00085]
[1718294470901,0.69323308,66495.0,66494.0,0.01185]
[1718294471366,0.69423308,66495.0,66494.0,0.02185]
[1718294471584,0.69423308,66495.0,66494.0,0.00085]
[1718294471801,0.70323308,66495.0,66494.0,0.00085]
[1718294472052,0.84755301,66495.0,66494.0,0.00085]
[1718294472309,0.84955301,66495.0,66494.0,0.00085]
[1718294473303,0.85155301,66495.0,66494.0,0.00085]
[1718294473571,0.84955301,66495.0,66494.0,0.00085]
[1718294474035,0.84955301,66495.0,66494.0,0.00285]
[1718294474214,0.84955301,66495.0,66494.0,0.00085]
[1718294474460,0.84755301,66495.0,66494.0,0.00085]
[1718294474937,0.12293308,66479.0,66478.0,0.1]
[1718294475166,0.12293308,66479.0,66463.0,0.5362]
[1718294475167,0.11293308,66459.0,66458.0,0.08]
[1718294475402,0.11293308,66459.0,66458.0,0.23047]
[1718294475633,0.11293308,66459.0,66458.0,0.24723941]
[1718294475896,0.11293308,66459.0,66458.0,0.30740841]
[1718294476687,0.11293308,66459.0,66458.0,0.15693841]
[1718294477186,0.11293308,66459.0,66458.0,0.17693841]
[1718294477490,0.11293308,66459.0,66458.0,0.07693841]
[1718294477707,0.11293308,66459.0,66458.0,0.01676941]
[1718294477933,0.11293308,66445.0,66444.0,0.08085]
[1718294478205,0.09293308,66446.0,66444.0,0.22516993]
[1718294478445,0.09293308,66447.0,66445.0,0.14431993]
[1718294478701,0.09293308,66447.0,66444.0,0.14103]
[1718294478922,0.09293308,66447.0,66445.0,0.1]
[1718294479098,0.09293308,66446.0,66445.0,0.1]
[1718294479296,0.11293308,66446.0,66445.0,0.1]
[1718294479434,0.09293308,66446.0,66445.0,0.1]
[1718294480103,0.09293308,66447.0,66445.0,0.1]
[1718294480362,0.11293308,66446.0,66445.0,0.1]
[1718294480574,0.11293308,66445.0,66444.0,0.15808643]
[1718294480704,0.09293308,66446.0,66445.0,0.023]
[1718294480908,0.11293308,66446.0,66445.0,0.023]
[1718294481111,0.11393308,66446.0,66445.0,0.1875]
[1718294481513,0.11293308,66446.0,66445.0,0.1735]
[1718294482125,0.09293308,66446.0,66445.0,0.2735]
[1718294482321,0.09293308,66450.0,66445.0,0.123]
[1718294482559,0.09293308,66446.0,66445.0,0.123]
[1718294482762,0.09293308,66446.0,66445.0,0.2735]
[1718294482915,0.11293308,66446.0,66445.0,0.2735]
[1718294483115,0.2551,66458.0,66445.0,0.2735]
[1718294483116,0.09293308,66451.0,66450.0,0.150489]
[1718294483341,0.09293308,66454.0,66451.0,0.08]
[1718294483594,0.11293308,66452.0,66451.0,0.32431993]
[1718294483794,0.11293308,66452.0,66451.0,0.34731993]
[1718294484354,0.11293308,66452.0,66451.0,0.18]
[1718294484557,0.11293308,66452.0,66445.0,0.014]
[1718294484558,0.11293308,66452.0,66445.0,0.114]
[1718294484754,0.11293308,66447.0,66446.0,0.023]
[1718294484976,0.09293308,66446.0,66445.0,0.12901934]
[1718294485186,0.11293308,66445.0,66444.0,0.07808643]
[1718294485387,0.12293308,66445.0,66444.0,0.00085]
[1718294485602,0.85775301,66445.0,66444.0,0.00085]
[1718294485814,0.12293308,66433.0,66432.0,0.060198]
[1718294485959,0.12293308,66433.0,66427.0,0.00854]
[1718294485960,0.11293308,66428.0,66427.0,0.00854]
[1718294487224,0.11293308,66428.0,66427.0,0.159081]
[1718294487622,0.09293308,66430.0,66429.0,0.150536]
[1718294487815,0.09293308,66430.0,66427.0,0.00854]
[1718294488022,0.09293308,66430.0,66429.0,0.150536]
[1718294488229,0.11293308,66430.0,66429.0,0.1]
[1718294489039,0.11393308,66430.0,66429.0,0.013]
[1718294489238,0.82165301,66430.0,66429.0,0.013]
[1718294490035,1.04545301,66430.0,66429.0,0.013]
[1718294491162,0.12293308,66428.0,66427.0,0.00854]
[1718294491350,0.26725301,66428.0,66427.0,0.00854]
[1718294491515,0.58425301,66428.0,66427.0,0.00854]
[1718294492225,0.58425301,66428.0,66427.0,0.02254]
[1718294492226,0.68425301,66428.0,66427.0,0.02254]
[1718294492445,0.68425301,66428.0,66405.0,0.00854]
[1718294492446,0.43663308,66420.0,66405.0,0.02703984]
[1718294492673,0.58095301,66420.0,66407.0,0.060221]